fUSD/lending_fUSD_20250930
["ID","MTS","AMOUNT","RATE_DAILY","PERIOD"]
[388624433,1759269033160,-150.0,0.00017387,2]
[388624434,1759269033169,-1418.91292736,0.00017387,2]
[388624435,1759269033179,-481.74352869,0.00017388,2]
[388624436,1759269033188,-1000.0,0.00017389,2]
[388624437,1759269033197,-345.4970508,0.00017389,2]
[388624438,1759269033207,-1114.10882628,0.00017393,2]
[388624439,1759269033216,-1418.91292736,0.00017399,2]
[388624440,1759269033225,-481.74352869,0.000174,2]
[388624441,1759269033235,-1731.11753086,0.000174,2]
[388624442,1759269033244,-2683.0,0.00017402,2]
[388624443,1759269033255,-21413.86115675,0.00017403,2]
[388624444,1759269033962,-26300.45860741,0.00017403,2]
[388624445,1759269033973,-1781.62392142,0.00017407,2]
[388624446,1759269033985,-408.63398,0.00017407,2]
[388624447,1759269033995,-1418.91292736,0.00017407,2]
[388624448,1759269034005,-241.28477103,0.00017408,2]
[388624449,1759269034015,-229.17905129,0.00017408,2]
[388624450,1759269034025,-234.56520094,0.00017408,2]
[388624451,1759269034034,-408.63398,0.00017408,2]
[388624452,1759269034043,-450.04601357,0.0001741,2]
[388624453,1759269034053,-516.3700013,0.0001741,2]
[388624454,1759269034062,-601.47033387,0.00017412,2]
[388624455,1759269034071,-289.12084022,0.00017413,2]
[388624456,1759269034080,-2200.81953854,0.00017414,2]
[388624457,1759269034093,-6974.75567608,0.00017414,2]
[388624470,1759269039679,-40817.43580298,0.00017414,2]
[388624471,1759269039690,-327.908741,0.00017415,2]
[388624472,1759269039700,-345.4970508,0.00017416,2]
[388624473,1759269039713,-408.63398,0.00017416,2]
[388624474,1759269039722,-229.17905129,0.00017416,2]
[388624475,1759269039732,-818.51362518,0.00017416,2]
[388624476,1759269039741,-818.51362518,0.00017417,2]
[388624477,1759269039751,-825.02620592,0.00017417,2]
[388624478,1759269039760,-1135.76589111,0.00017418,2]
[388624479,1759269039769,-516.3700013,0.0001742,2]
[388624480,1759269039779,-692.95411529,0.00017422,2]
[388624481,1759269039788,-261.43819945,0.00017422,2]
[388624482,1759269039798,-601.47033387,0.00017422,2]
[388624483,1759269039808,-1000.0,0.00017423,2]
[388624484,1759269039818,-309.65598982,0.00017425,2]
[388624485,1759269039827,-345.4970508,0.00017426,2]
[388624486,1759269039836,-234.56520094,0.00017426,2]
[388624487,1759269039847,-289.12084022,0.00017427,2]
[388624488,1759269039858,-825.02620592,0.00017427,2]
[388624489,1759269039868,-825.02620592,0.00017427,2]
[388624490,1759269039877,-1114.10882628,0.00017428,2]
[388624491,1759269039887,-1135.76589111,0.00017429,2]
[388624492,1759269039897,-368.859164,0.00017429,2]
[388624493,1759269039907,-289.12084022,0.0001743,2]
[388624494,1759269039916,-200.0,0.0001743,2]
[388624495,1759269039925,-322.6107,0.0001743,2]
[388624496,1759269039935,-601.3376128,0.0001743,2]
[388624497,1759269039945,-151.0,0.0001743,2]
[388624498,1759269039956,-194.93289597,0.0001743,2]
[388624499,1759269039967,-160.0,0.0001743,2]
[388624500,1759269039979,-200.0,0.0001743,2]
[388624501,1759269039988,-404.50789835,0.0001743,2]
[388624502,1759269039997,-410.15805426,0.0001743,2]
[388624503,1759269040023,-89.84194574,0.0001743,2]
[388624504,1759269040033,-151.0,0.0001743,2]
[388624505,1759269040043,-500.0,0.0001743,2]
[388624506,1759269040053,-155.2589367,0.0001743,2]
[388624507,1759269040063,-151.0,0.0001743,2]
[388624508,1759269040072,-500.0,0.0001743,2]
[388624509,1759269040082,-322.36655224,0.0001743,2]
[388624510,1759269040094,-177.63344776,0.0001743,2]
[388624511,1759269040103,-151.0,0.0001743,2]
[388624512,1759269040113,-500.0,0.0001743,2]
[388624513,1759269040122,-432.49555942,0.0001743,2]
[388624514,1759269040197,-67.50444058,0.0001743,2]
[388624515,1759269040207,-151.0,0.0001743,2]
[388624516,1759269040216,-500.0,0.0001743,2]
[388624517,1759269040225,-151.0,0.0001743,2]
[388624518,1759269040235,-500.0,0.0001743,2]
[388624519,1759269040243,-500.0,0.0001743,2]
[388624520,1759269040252,-151.0,0.0001743,2]
[388624521,1759269040262,-500.0,0.0001743,2]
[388624522,1759269040271,-500.0,0.0001743,2]
[388624523,1759269040281,-151.0,0.0001743,2]
[388624524,1759269040290,-85.02040311,0.0001743,2]
[388624525,1759269040324,-414.97959689,0.0001743,2]
[388624526,1759269040333,-151.0,0.0001743,2]
[388624527,1759269040343,-500.0,0.0001743,2]
[388624528,1759269040352,-500.0,0.0001743,2]
[388624529,1759269040361,-75.77736311,0.0001743,2]
[388624532,1759269040785,-75.22263689,0.0001743,2]
[388624533,1759269040796,-500.0,0.0001743,2]
[388624534,1759269040805,-337.35154285,0.0001743,2]
[388624535,1759269040837,-162.64845715,0.0001743,2]
[388624536,1759269040846,-500.0,0.0001743,2]
[388624537,1759269040855,-151.0,0.0001743,2]
[388624538,1759269040864,-500.0,0.0001743,2]
[388624539,1759269040873,-500.0,0.0001743,2]
[388624540,1759269040882,-500.0,0.0001743,2]
[388624541,1759269040892,-151.0,0.0001743,2]
[388624542,1759269040900,-500.0,0.0001743,2]
[388624543,1759269040910,-500.0,0.0001743,2]
[388624544,1759269040919,-56.39154283,0.0001743,2]
[388624545,1759269042141,-94.60845717,0.0001743,2]
[388624546,1759269042151,-500.0,0.0001743,2]
[388624547,1759269042161,-500.0,0.0001743,2]
[388624548,1759269042170,-500.0,0.0001743,2]
[388624549,1759269042179,-151.0,0.0001743,2]
[388624550,1759269042188,-428.69154283,0.0001743,2]
[388624551,1759269042248,-71.30845717,0.0001743,2]
[388624552,1759269042257,-186.69262557,0.0001743,2]
[388624553,1759269042269,-313.30737443,0.0001743,2]
[388624554,1759269042278,-119.94615352,0.0001743,2]
[388624555,1759269042290,-31.05384648,0.0001743,2]
[388624556,1759269042300,-500.0,0.0001743,2]
[388624557,1759269042309,-105.12615355,0.0001743,2]
[388624558,1759269042320,-394.87384645,0.0001743,2]
[388624559,1759269042331,-151.0,0.0001743,2]
[388624560,1759269042343,-500.0,0.0001743,2]
[388624561,1759269042354,-151.0,0.0001743,2]
[388624562,1759269042363,-291.80970932,0.0001743,2]
[388624563,1759269042401,-208.19029068,0.0001743,2]
[388624564,1759269042410,-500.0,0.0001743,2]
[388624565,1759269042419,-151.0,0.0001743,2]
[388624566,1759269042429,-500.0,0.0001743,2]
[388624567,1759269042438,-151.0,0.0001743,2]
[388624568,1759269042447,-500.0,0.0001743,2]
[388624569,1759269042456,-500.0,0.0001743,2]
[388624570,1759269042465,-151.0,0.0001743,2]
[388624571,1759269042474,-151.0,0.0001743,2]
[388624572,1759269042483,-500.0,0.0001743,2]
[388624573,1759269042492,-151.0,0.0001743,2]
[388624574,1759269042501,-500.0,0.0001743,2]
[388624575,1759269042510,-500.0,0.0001743,2]
[388624576,1759269042519,-500.0,0.0001743,2]
[388624577,1759269042528,-200.0,0.0001743,2]
[388624578,1759269042537,-151.0,0.0001743,2]
[388624579,1759269042546,-500.0,0.0001743,2]
[388624580,1759269042556,-500.0,0.0001743,2]
[388624581,1759269042565,-151.0,0.0001743,2]
[388624582,1759269042574,-500.0,0.0001743,2]
[388624583,1759269042583,-500.0,0.0001743,2]
[388624584,1759269042592,-151.0,0.0001743,2]
[388624585,1759269042601,-500.0,0.0001743,2]
[388624586,1759269042612,-500.0,0.0001743,2]
[388624587,1759269042622,-151.0,0.0001743,2]
[388624588,1759269042636,-500.0,0.0001743,2]
[388624589,1759269042646,-500.0,0.0001743,2]
[388624590,1759269042656,-151.0,0.0001743,2]
[388624591,1759269042665,-500.0,0.0001743,2]
[388624592,1759269042677,-158.70107088,0.0001743,2]
[388624593,1759269042687,-151.0,0.0001743,2]
[388624594,1759269042697,-500.0,0.0001743,2]
[388624595,1759269042707,-151.0,0.0001743,2]
[388624596,1759269042716,-151.0,0.0001743,2]
[388624597,1759269042725,-151.0,0.0001743,2]
[388624598,1759269042734,-151.0,0.0001743,2]
[388624599,1759269042743,-151.0,0.0001743,2]
[388624600,1759269042752,-151.0,0.0001743,2]
[388624601,1759269042761,-151.0,0.0001743,2]
[388624602,1759269042771,-151.0,0.0001743,2]
[388624603,1759269042780,-200.0,0.0001743,2]
[388624604,1759269042789,-151.0,0.0001743,2]
[388624605,1759269042798,-200.0,0.0001743,2]
[388624606,1759269042807,-200.0,0.0001743,2]
[388624607,1759269042816,-200.0,0.0001743,2]
[388624608,1759269042825,-200.0,0.0001743,2]
[388624609,1759269042834,-222.75756855,0.0001743,2]
[388624610,1759269042843,-500.0,0.0001743,2]
[388624611,1759269042852,-500.0,0.0001743,2]
[388624612,1759269042861,-795.40021019,0.00017432,2]
[388624776,1759269045441,-632.23100334,0.00017432,2]
[388624779,1759269045451,-188.89313762,0.00017432,2]
[388624781,1759269045460,-13.53535905,0.00017432,2]
[388624783,1759269045471,-2738.84570824,0.00017432,2]
[388624785,1759269045480,-261.43819945,0.00017432,2]
[388624787,1759269045490,-309.65598982,0.00017433,2]
[388624789,1759269045499,-455.62455023,0.00017433,2]
[388624791,1759269045507,-419.36628744,0.00017433,2]
[388624793,1759269045516,-188.89313762,0.00017433,2]
[388624795,1759269045525,-818.51362518,0.00017434,2]
[388624797,1759269045535,-174.11181719,0.00017434,2]
[388624799,1759269045544,-977.75,0.00017435,2]
[388624801,1759269045554,-1000.0,0.00017435,2]
[388624803,1759269045563,-825.15645753,0.00017436,2]
[388624805,1759269045572,-1427.63121353,0.00017438,2]
[388624807,1759269045583,-1418.91292736,0.00017438,2]
[388624809,1759269045594,-482.17670385,0.00017439,2]
[388624811,1759269045603,-1114.10882628,0.00017439,2]
[388624813,1759269045612,-500.0,0.00017441,2]
[388624815,1759269045622,-1926.0,0.00017441,2]
[388624817,1759269045635,-150.0,0.00017441,2]
[388624819,1759269045644,-755.0,0.00017441,2]
[388624821,1759269045653,-150.0,0.00017441,2]
[388624823,1759269045662,-150.0,0.00017441,2]
[388624825,1759269045671,-200.0,0.00017441,2]
[388624827,1759269045680,-150.0,0.00017441,2]
[388624829,1759269045689,-150.0,0.00017441,2]
[388624831,1759269045699,-500.0,0.00017441,2]
[388624833,1759269045711,-500.0,0.00017441,2]
[388624835,1759269045720,-150.0,0.00017441,2]
[388624837,1759269045729,-150.0,0.00017441,2]
[388624839,1759269045738,-150.0,0.00017441,2]
[388624841,1759269045747,-227.86776373,0.00017441,2]
[388624843,1759269045756,-152.75692236,0.00017441,2]
[388624845,1759269045765,-150.0,0.00017441,2]
[388624847,1759269045774,-150.0,0.00017441,2]
[388624849,1759269045783,-150.0,0.00017441,2]
[388624851,1759269045793,-153.72761504,0.00017441,2]
[388624853,1759269045802,-150.0,0.00017441,2]
[388624855,1759269045811,-500.0,0.00017441,2]
[388624857,1759269045820,-1135.76589111,0.00017441,2]
[388624859,1759269045829,-234.56520094,0.00017442,2]
[388624861,1759269045839,-781.41135943,0.00017442,2]
[388624863,1759269045848,-692.95411529,0.00017444,2]
[388624865,1759269045857,-3247.29368838,0.00017444,2]
[388624870,1759269045890,-1591.92178219,0.00017444,2]
[388624872,1759269045899,-2752.38106729,0.00017445,2]
[388624874,1759269045908,-174.11181719,0.00017447,2]
[388624876,1759269045917,-825.02620592,0.00017447,2]
[388624878,1759269045928,-188.89313762,0.00017448,2]
[388624880,1759269045938,-1000.0,0.00017448,2]
[388624882,1759269045947,-1781.62392142,0.00017449,2]
[388624884,1759269045956,-482.17670385,0.00017451,2]
[388624886,1759269045967,-1427.63121353,0.00017451,2]
[388624888,1759269045976,-1114.10882628,0.00017451,2]
[388624890,1759269045985,-241.28477103,0.00017451,2]
[388624892,1759269045995,-289.12084022,0.00017452,2]
[388624894,1759269046004,-516.3700013,0.00017452,2]
[388624896,1759269046013,-482.17670385,0.00017453,2]
[388624898,1759269046023,-241.28477103,0.00017453,2]
[388624900,1759269046032,-4839.21547057,0.00017454,2]
[388624902,1759269046041,-261.43819945,0.00017454,2]
[388624904,1759269046050,-10741.58644061,0.00017454,2]
[388624968,1759269047775,-6182.10233035,0.00017454,2]
[388624969,1759269047786,-313.8242,0.00017454,2]
[388624970,1759269047799,-547.36227033,0.00017454,2]
[388624971,1759269048205,-5213.0,0.00017454,2]
[388624972,1759269048240,-354.70923108,0.00017454,2]
[388624973,1759269048440,-666.0,0.00017454,2]
[388624994,1759269526898,170.06,0.0002518,120]
[388625190,1759269590659,-210.91051109,0.00016603,2]
[388625191,1759269593056,-220.44612864,0.00016603,2]
[388625194,1759269820499,165.76,0.00016245,2]
[388625195,1759269846060,184.12,0.00016246,2]
[388625196,1759269878222,159.63,0.00016274,2]
[388625197,1759270071521,-1701.0,0.0002,30]
[388625198,1759270189340,-9361.22733627,0.0002,30]
[388625199,1759270189365,-26955.77266373,0.000209,30]
[388625239,1759270233148,-1200.0,0.00016618,2]
[388625240,1759270233164,-300.0,0.00016618,2]
[388625241,1759270233176,-1670.898,0.00016619,2]
[388625242,1759270233188,-375.533,0.00016619,2]
[388625243,1759270233199,-1700.0,0.00016619,2]
[388625244,1759270233216,-896.27,0.00016619,2]
[388625245,1759270233228,-2000.0,0.00016621,2]
[388625246,1759270233240,-195.0,0.00016623,2]
[388625247,1759270233252,-250.0,0.00016623,2]
[388625248,1759270233264,-300.0,0.00016627,2]
[388625249,1759270233276,-288.0,0.00016663,2]
[388625250,1759270233289,-2000.0,0.00016664,2]
[388625251,1759270233300,-2000.0,0.00016664,2]
[388625252,1759270233313,-612.18751803,0.00016664,2]
[388625253,1759270233325,-247.0,0.000167,2]
[388625254,1759270233337,-666.0,0.00016748,3]
[388625255,1759270233349,-170.06,0.00016787,2]
[388625256,1759270233361,-231.28369723,0.0001679,2]
[388625257,1759270233373,-578.20924308,0.0001679,2]
[388625258,1759270233385,-165.83,0.00016795,2]
[388625259,1759270233396,-26694.19204583,0.000168,2]
[388625260,1759270233407,-172.68,0.0001682,2]
[388625261,1759270233420,-250.0,0.00016883,2]
[388625262,1759270233431,-896.27,0.00016893,2]
[388625263,1759270233443,-1101.19935612,0.00016956,2]
[388625264,1759270233454,-550.0,0.00016971,2]
[388625265,1759270233465,-322.6107,0.00016972,2]
[388625266,1759270233475,-601.3376128,0.00016972,2]
[388625267,1759270233486,-160.0,0.00016972,2]
[388625268,1759270233497,-252.05472695,0.00016972,2]
[388625269,1759270233508,-297.71832794,0.00016972,2]
[388625270,1759270233520,-500.0,0.00016972,2]
[388625271,1759270233530,-500.0,0.00016972,2]
[388625272,1759270233541,-500.0,0.00016972,2]
[388625273,1759270233552,-500.0,0.00016972,2]
[388625274,1759270233563,-500.0,0.00016972,2]
[388625275,1759270233575,-500.0,0.00016972,2]
[388625276,1759270233587,-500.0,0.00016972,2]
[388625277,1759270233598,-500.0,0.00016972,2]
[388625278,1759270233609,-500.0,0.00016972,2]
[388625279,1759270233620,-500.0,0.00016972,2]
[388625280,1759270233631,-717.56380877,0.00016981,2]
[388625281,1759270233641,-1000.0,0.00017002,2]
[388625282,1759270233653,-582.04720901,0.00017009,2]
[388625283,1759270233664,-724.6132988,0.00017104,2]
[388625284,1759270233675,-150.0,0.00017149,2]
[388625285,1759270233686,-896.27,0.00017167,2]
[388625286,1759270233697,-505.0,0.00017178,2]
[388625287,1759270233708,-1425.0,0.00017262,2]
[388625288,1759270233720,-200.0,0.00017314,2]
[388625289,1759270233731,-181.74,0.00017321,2]
[388625290,1759270233743,-184.12,0.00017329,2]
[388625291,1759270233755,-3770.15250327,0.00017358,2]
[388625292,1759270233766,-192.81727263,0.00017362,2]
[388625293,1759270233777,-205.82847181,0.00017363,2]
[388625294,1759270233788,-224.41053054,0.00017367,2]
[388625295,1759270233799,-1000.0,0.0001737,2]
[388625296,1759270233810,-324.64094543,0.00017379,2]
[388625297,1759270233821,-188.14245442,0.0001738,2]
[388625298,1759270233832,-224.41053054,0.0001738,2]
[388625299,1759270233843,-1821.49309054,0.00017381,2]
[388625300,1759270233855,-205.82847181,0.00017384,2]
[388625301,1759270233866,-224.41053054,0.00017389,2]
[388625302,1759270233877,-324.64094543,0.00017394,2]
[388625303,1759270233889,-205.82847181,0.00017398,2]
[388625304,1759270233901,-32664.64118195,0.00017403,2]
[388625305,1759270233917,-8207.69311678,0.00017403,2]
[388625306,1759270233932,-23221.90160946,0.00017403,2]
[388625307,1759270233942,-426.86472099,0.00017408,2]
[388625308,1759270233953,-192.81727263,0.00017408,2]
[388625309,1759270233964,-324.64094543,0.00017411,2]
[388625310,1759270233975,-205.82847181,0.00017411,2]
[388625311,1759270233987,-426.86472099,0.00017419,2]
[388625312,1759270233997,-487.36645284,0.0001742,2]
[388625313,1759270234008,-192.81727263,0.00017424,2]
[388625314,1759270234019,-192.81727263,0.00017426,2]
[388625315,1759270234031,-148.58234148,0.00017427,2]
[388625316,1759270234046,-39.56011294,0.00017427,2]
[388625317,1759270234058,-1821.49309054,0.00017431,2]
[388625318,1759270234069,-28710.74425758,0.00017432,2]
[388625319,1759270234081,-773.3991641,0.00017432,2]
[388625320,1759270234093,-2917.11884798,0.00017432,2]
[388625321,1759270234108,-1015.83524192,0.00017432,2]
[388625322,1759270234205,-19301.19816888,0.00017432,2]
[388625323,1759270234219,-756.43081065,0.00017432,2]
[388625324,1759270234231,-2894.44775361,0.00017432,2]
[388625325,1759270234366,-455.23217681,0.00017432,2]
[388625326,1759270234379,-1773.50215165,0.00017432,2]
[388625327,1759270234391,-5367.16349979,0.00017432,2]
[388625328,1759270234437,-129.16383522,0.00017432,2]
[388625329,1759270234448,-171.71525698,0.00017433,2]
[388625330,1759270234459,-261.91881705,0.00017433,2]
[388625331,1759270234470,-308.20209075,0.00017437,2]
[388625348,1759270240774,-571.816212,0.00017437,2]
[388625349,1759270240861,-1348.01432635,0.00017437,2]
[388625350,1759270240904,-5734.51638528,0.00017437,2]
[388625351,1759270241946,-1340.0,0.00017437,2]
[388625352,1759270242124,-321.503,0.00017437,2]
[388625353,1759270242239,-420.816212,0.00017437,2]
[388625354,1759270242269,-54049.36768181,0.00017437,2]
[388625355,1759270242278,-151.0,0.0001744,2]
[388625356,1759270242290,-896.27,0.00017441,2]
[388625357,1759270242299,-450.25265527,0.00017442,2]
[388625358,1759270242308,-412.48,0.00017442,2]
[388625359,1759270242318,-409.1,0.00017442,2]
[388625360,1759270242327,-76291.9199197,0.00017443,2]
[388625361,1759270242337,-3599.9725008,0.00017443,2]
[388625362,1759270242346,-151.0,0.00017447,2]
[388625363,1759270242355,-224.41053054,0.00017448,2]
[388625364,1759270242364,-487.36645284,0.00017449,2]
[388625365,1759270242373,-731.4593511,0.0001745,2]
[388625366,1759270242382,-3632.9545393,0.0001745,2]
[388625367,1759270242391,-2209.5746386,0.0001745,2]
[388625368,1759270242400,-1821.49309054,0.00017452,2]
[388625369,1759270242410,-324.64094543,0.00017453,2]
[388625370,1759270242419,-3021.45,0.00017454,2]
[388625371,1759270242429,-151.0,0.00017454,2]
[388625372,1759270242438,-151.0,0.00017454,2]
[388625373,1759270242448,-151.56168048,0.00017454,2]
[388625374,1759270242457,-25974.42654523,0.00017454,2]
[388625375,1759270242468,-309.65598982,0.00017455,2]
[388625376,1759270242478,-2752.38106729,0.00017455,2]
[388625377,1759270242487,-4839.21547057,0.00017457,2]
[388625378,1759270242497,-492.88458812,0.00017457,2]
[388625379,1759270242509,-150.0,0.00017458,2]
[388625380,1759270242520,-150.0,0.00017458,2]
[388625381,1759270242530,-150.0,0.00017458,2]
[388625382,1759270242540,-150.0,0.00017458,2]
[388625383,1759270242550,-150.0,0.00017458,2]
[388625384,1759270242560,-150.0,0.00017458,2]
[388625385,1759270242569,-150.0,0.00017458,2]
[388625386,1759270242579,-150.0,0.00017458,2]
[388625387,1759270242588,-150.0,0.00017458,2]
[388625388,1759270242597,-150.0,0.00017458,2]
[388625389,1759270242606,-150.0,0.00017458,2]
[388625390,1759270242615,-150.0,0.00017458,2]
[388625391,1759270242625,-150.0,0.00017458,2]
[388625392,1759270242635,-150.0,0.00017458,2]
[388625393,1759270242645,-150.0,0.00017458,2]
[388625394,1759270242655,-297.37287371,0.00017458,2]
[388625395,1759270242664,-150.0,0.00017458,2]
[388625396,1759270242673,-150.0,0.00017458,2]
[388625397,1759270242682,-49993.0110176,0.00017458,2]
[388625398,1759270242691,-487.36645284,0.00017458,2]
[388625399,1759270242701,-825.15645753,0.00017461,2]
[388625400,1759270242712,-2683.0,0.00017461,2]
[388625401,1759270242722,-224.41053054,0.00017462,2]
[388625402,1759270242731,-2752.38106729,0.00017462,2]
[388625403,1759270242741,-229.17905129,0.00017462,2]
[388625404,1759270242751,-1821.49309054,0.00017464,2]
[388625405,1759270242760,-450.04601357,0.00017465,2]
[388625406,1759270242769,-1821.49309054,0.00017465,2]
[388625407,1759270242779,-1781.62392142,0.00017465,2]
[388625408,1759270242788,-1781.62392142,0.00017467,2]
[388625409,1759270242797,-64094.23590819,0.00017467,2]
[388625410,1759270242807,-64094.23590819,0.00017468,2]
[388625411,1759270242816,-825.15645753,0.00017469,2]
[388625412,1759270242827,-192.81727263,0.0001747,2]
[388625413,1759270242836,-2683.0,0.0001747,2]
[388625414,1759270242846,-4839.21547057,0.00017471,2]
[388625415,1759270242856,-516.3700013,0.00017472,2]
[388625416,1759270242866,-234.56520094,0.00017472,2]
[388625417,1759270242876,-188.14245442,0.00017472,2]
[388625418,1759270242885,-419.36628744,0.00017472,2]
[388625419,1759270242895,-2752.38106729,0.00017473,2]
[388625420,1759270242904,-450.04601357,0.00017473,2]
[388625421,1759270242914,-4839.21547057,0.00017473,2]
[388625422,1759270242924,-426.86472099,0.00017474,2]
[388625423,1759270242934,-450.04601357,0.00017475,2]
[388625424,1759270242943,-327.908741,0.00017476,2]
[388625425,1759270242954,-487.36645284,0.00017477,2]
[388625426,1759270242963,-188.89313762,0.00017477,2]
[388625427,1759270242973,-174.11181719,0.00017478,2]
[388625428,1759270242982,-229.17905129,0.00017481,2]
[388625429,1759270242991,-188.14245442,0.00017481,2]
[388625430,1759270243001,-174.11181719,0.00017482,2]
[388625431,1759270243010,-188.14245442,0.00017485,2]
[388625433,1759270243019,-419.36628744,0.00017487,2]
[388625434,1759270243029,-205.82847181,0.00017489,2]
[388625435,1759270243038,-426.86472099,0.00017491,2]
[388625436,1759270243047,-601.47033387,0.00017493,2]
[388625437,1759270243056,-825.15645753,0.00017494,2]
[388625438,1759270243065,-692.95411529,0.00017494,2]
[388625439,1759270243075,-825.02620592,0.00017494,2]
[388625440,1759270243084,-426.86472099,0.00017496,2]
[388625441,1759270243095,-229.17905129,0.00017497,2]
[388625442,1759270243104,-327.908741,0.00017497,2]
[388625443,1759270243113,-289.12084022,0.00017497,2]
[388625444,1759270243122,-818.51362518,0.00017499,2]
[388625445,1759270243131,-324.64094543,0.000175,2]
[388625446,1759270243140,-487.36645284,0.000175,2]
[388625447,1759270243443,-197.4,0.00017523,2]
[388625448,1759270243462,-3770.15250324,0.00017529,2]
[388625449,1759270243472,-2683.0,0.0001754,2]
[388625450,1759270243481,-150.0,0.00017572,2]
[388625451,1759270243491,-150.0,0.00017579,2]
[388625452,1759270243500,-150.0,0.000176,2]
[388625453,1759270243511,-150.0,0.00017652,2]
[388625454,1759270243521,-908.26,0.0001766,2]
[388625455,1759270243532,-43246.45290545,0.00017673,2]
[388625456,1759270243541,-150.0,0.00017673,2]
[388625457,1759270243552,-150.0,0.00017686,2]
[388625458,1759270243561,-150.0,0.000177,2]
[388625460,1759270243571,-150.0,0.000177,2]
[388625462,1759270243580,-3770.15250324,0.00017701,2]
[388625464,1759270243592,-1063.5024334,0.00017707,2]
[388625466,1759270243601,-896.27,0.00017715,2]
[388625468,1759270243610,-500.0,0.0001772,2]
[388625470,1759270243620,-582.04720901,0.00017734,2]
[388625472,1759270243631,-150.0,0.00017735,2]
[388625474,1759270243644,-150.0,0.00017735,2]
[388625475,1759270243656,-180.0,0.00017742,2]
[388625476,1759270243665,-150.0,0.00017781,2]
[388625477,1759270243675,-2683.0,0.00017786,2]
[388625478,1759270243685,-1000.0,0.0001779,2]
[388625479,1759270243694,-150.0,0.000178,2]
[388625480,1759270243703,-150.0,0.000178,2]
[388625481,1759270243715,-2683.0,0.00017813,2]
[388625482,1759270243725,-150.0,0.00017821,2]
[388625483,1759270243735,-150.0,0.00017845,2]
[388625484,1759270243745,-150.0,0.00017845,2]
[388625485,1759270243755,-150.0,0.00017845,2]
[388625486,1759270243764,-3770.15250324,0.00017872,2]
[388625487,1759270243774,-242.0,0.0001788,2]
[388625488,1759270243785,-150.0,0.00017889,2]
[388625489,1759270243794,-23594.01900902,0.0001789,2]
[388625490,1759270243804,-150.0,0.00017914,2]
[388625491,1759270243813,-168.0,0.00017916,2]
[388625492,1759270243823,-150.0,0.00017942,2]
[388625493,1759270243832,-150.0,0.00017942,2]
[388625494,1759270243842,-168.0,0.00017955,2]
[388625495,1759270243852,-168.0,0.0001796,2]
[388625496,1759270243861,-795.0,0.00017972,2]
[388625497,1759270243871,-896.27,0.00017989,2]
[388625498,1759270243879,-240.23794355,0.00018,2]
[388625499,1759270243889,-150.0,0.00018,2]
[388625500,1759270243898,-150.0,0.00018012,2]
[388625501,1759270243908,-150.0,0.00018012,2]
[388625502,1759270243918,-2683.0,0.00018024,2]
[388625503,1759270243928,-150.0,0.00018028,2]
[388625504,1759270243936,-150.0,0.00018039,2]
[388625505,1759270243946,-3770.15250324,0.00018043,2]
[388625506,1759270243955,-150.0,0.00018064,2]
[388625507,1759270243964,-168.0,0.00018067,2]
[388625508,1759270243974,-300.0,0.00018074,2]
[388625509,1759270243983,-168.0,0.00018081,2]
[388625510,1759270243992,-168.0,0.00018092,2]
[388625511,1759270244001,-150.0,0.00018104,2]
[388625512,1759270244010,-150.0,0.00018104,2]
[388625513,1759270244020,-150.0,0.00018104,2]
[388625514,1759270244030,-150.0,0.00018104,2]
[388625515,1759270244039,-150.0,0.00018142,2]
[388625516,1759270244049,-239.84119403,0.00018159,2]
[388625517,1759270244059,-153.70794709,0.00018185,2]
[388625518,1759270244068,-150.0,0.00018185,2]
[388625519,1759270244077,-150.0,0.00018185,2]